Cogmind - Beta 16.1 @@@ ROGUE MODE // 2026.02.18 @ 12:27:14 Player: Ceorik Result: Destroyed by JP-K07(R) with Subdweller Beam Cannon Performance ------------- Evolutions (0) 0 Regions Visited (3) 600 Robots Destroyed (12) 60 Value Destroyed (351) 351 Prototype IDs (0) 0 Alien Tech Used (0) 0 Bonus (0) 0 TOTAL SCORE: 1011 Bonus ------- None Cogmind --------- Core Integrity 0/250 Matter 300/300 Energy 160/160 System Corruption 0% Temperature Cool (9) Movement Walking (120) Location -10/Subcaves Parts ------- > --- POWER (1) -------- Light Nuclear Core > --- PROPULSION (2) --- Carbon-fiber Leg Myomer Leg > --- UTILITY (2) ------ Small Storage Unit Makeshift Light Armor Plating > --- WEAPON (2) ------- Maul Makeshift Axe > --- INVENTORY (8) ---- Improved Heat Sink Propulsion Shielding Propulsion Shielding Light Armor Plating Scrap Shield Light EM Pulse Cannon Peak State ------------ > --- POWER ------------ Light Angular Momentum Engine > --- PROPULSION ------- Carbon-fiber Leg Myomer Leg > --- UTILITY ---------- Small Storage Unit Makeshift Light Armor Plating > --- WEAPON ----------- Maul Makeshift Axe > --- INVENTORY -------- Improved Heat Sink Improved Heat Sink Propulsion Shielding Propulsion Shielding Scrap Shield Light EM Pulse Cannon Maul [Rating: 27] Favorites ----------- Power Ion Engine Engine Ion Engine Power Core Light Nuclear Core Propulsion Aluminum Leg Leg Aluminum Leg Utility Small Storage Unit Storage Small Storage Unit Processor Signal Interpreter Protection Makeshift Light Armor Plating Weapon Maul Energy Cannon Light EM Pulse Cannon Ballistic Gun Assault Rifle Launcher Grenade Launcher Impact Weapon Maul Slashing Weapon Makeshift Axe Build | -11 -10 -10 -10 ------- Run | Yrd Mat Min Sub Slots Evolved . | . . . . Power . | . . . . Propulsion . | . . . . Utility . | . . . . Weapon . | . . . . Parts Attached 20 | 6 3 2 9 Power 5 | 1 . . 4 Engine 4 | 1 . . 3 Core 1 | . . . 1 Reactor . | . . . . Propulsion 4 | 2 . . 2 Treads . | . . . . Leg 4 | 2 . . 2 Wheel . | . . . . Hover . | . . . . Flight . | . . . . Utility 4 | 1 1 . 2 Device . | . . . . Storage 1 | 1 . . . Processor 1 | . 1 . . Hackware . | . . . . Protection 2 | . . . 2 Artifact . | . . . . Weapon 7 | 2 2 2 1 Energy Gun . | . . . . Energy Cannon 1 | . . 1 . Ballistic Gun 2 | 2 . . . Ballistic Cannon . | . . . . Launcher 1 | . . 1 . Special Weapon . | . . . . Impact Weapon 2 | . 2 . . Slashing Weapon 1 | . . . 1 Piercing Weapon . | . . . . Special Melee Weapon . | . . . . Unidentified Prototypes . | . . . . Parts Lost 4 | . . . 4 Power 1 | . . . 1 Propulsion 2 | . . . 2 Utility . | . . . . Weapon 1 | . . . 1 Highest Loss Streak 4 | . . . 4 To Critical Strikes . | . . . . Average Backups 6 | 1 6 7 6 Power . | . 1 2 . Propulsion . | . . . . Utility 3 | . 1 2 4 Weapon 2 | . 3 3 1 Tool/Special . | . . . . Unused Backups 12 | . 2 1 9 Power 1 | . . 1 . Propulsion . | . . . . Utility 7 | . . . 7 Weapon 4 | . 2 . 2 Tool/Special . | . . . . Average Slot Usage (%) 96 | . 99 100 94 Engine 10 | . 14 14 8 Core 2 | . . . 4 Leg 25 | . 28 28 23 Storage 13 | . 14 14 12 Processor 7 | . 13 14 3 Protection 7 | . . . 11 Ballistic Gun 3 | . 16 . . Impact Weapon 19 | . 11 27 20 Slashing Weapon 4 | . . . 7 Peak Build Rating 27 | 6 10 10 27 Average Rating 15 | 4 8 9 20 On Entrance 6 | . 6 10 10 Avg Prop Armor Cover (%) . | . . . . Naked Turns . | . . . . Heaviest Build 24 | 14 16 16 24 Greatest Support 40 | 20 20 20 40 Greatest Overweight (x) 4 | . . . 4 Average Overweight (x) . | . . . . Largest Inventory Capacity 8 | 8 8 8 8 Average Capacity 7 | 6 8 8 7 Most Carried 8 | 3 8 8 8 Average Carried 7 | 1 6 7 7 Final Capacity 8 | 8 8 8 8 Final Carried 8 | 2 8 7 7 Class Distribution -------------------- 100% | Mutant Dominant Class ---------------- Mutant | -10/Materials Mutant | -10/Mines Mutant | -10/Subcaves Resources | -11 -10 -10 -10 ----------- Run | Yrd Mat Min Sub Matter Collected 480 | 252 38 27 163 Remotely . | . . . . Salvage Created 378 | . 47 125 206 Parts 17 | . 2 5 10 Haulers Intercepted . | . . . . Recyclers Shooed . | . . . . Parts Field Recycled . | . . . . Retrieved Matter . | . . . . Parts Self-Destructed 4 | . . . 4 Prevented . | . . . . Parts Restored . | . . . . Kills | -11 -10 -10 -10 ------- Run | Yrd Mat Min Sub Combat Hostiles Destroyed 11 | . 1 5 5 Melee 5 | . 1 2 2 Cannons 1 | . . 1 . AOE 3 | . . 2 1 Classes Destroyed 5 | . 1 2 2 Worker 1 | . . 1 . Swarmer 3 | . . 3 . Grunt 3 | . 1 2 . Sentry 1 | . . . 1 Subdweller 4 | . . . 4 Best Kill Streak 3 | . 1 3 1 Combat Bots Only 3 | . 1 3 1 Max Kills in Single Turn 2 | . 1 2 1 Gunslinging . | . . . . Exploded 2 | . . 2 1 Melee 1 | . 1 1 1 Uniques/NPCs Destroyed . | . . . . Combat | -11 -10 -10 -10 -------- Run | Yrd Mat Min Sub Hostile Shots Fired 82 | . 3 37 42 Missed 24 | . . 8 16 Hits 58 | . 3 29 26 Projectile 58 | . 3 29 26 Critical Strikes 2 | . . 2 . Damage Taken 901 | . 34 298 569 Core 266 | . 12 51 203 Absorbed by Shields . | . . . . Core Remaining (%) 100 | 100 . . . Volleys Fired 5 | . . 3 2 Largest 1 | . . 1 1 Hottest 56 | . . 56 30 Shots Fired 5 | . . 3 2 Gun . | . . . . Cannon 2 | . . 2 . Launcher 3 | . . 1 2 Special . | . . . . Kinetic . | . . . . Thermal . | . . . . Explosive 3 | . . 1 2 Electromagnetic 2 | . . 2 . Robot Hit Streak 4 | . . 2 4 Robot Miss Streak . | . . . . Penetration Max . | . . . . Secondary Targets . | . . . . Shots Hit Robots 26 | . 1 8 17 Core Hits 11 | . 1 6 4 Critical Kills 2 | . 1 1 . Critical Parts Destroyed 2 | . . . 2 Critical Strikes 5 | . 1 1 3 Smash 4 | . 1 1 2 Sever 1 | . . . 1 Melee Attacks 35 | . 2 12 21 Impact 21 | . 2 12 7 Slashing 14 | . . . 14 Piercing . | . . . . Sneak Attacks 1 | . . 1 . Combat Hostiles . | . . . . Follow-up Attacks 6 | . . 2 4 Damage Inflicted 1256 | . 32 434 790 Guns . | . . . . Cannons 42 | . . 42 . Explosions 317 | . . 112 205 Melee 897 | . 32 280 585 Ramming . | . . . . Kinetic . | . . . . Thermal . | . . . . Explosive 317 | . . 112 205 Electromagnetic 42 | . . 42 . Impact 523 | . 32 280 211 Slashing 374 | . . . 374 Piercing . | . . . . Highest Corruption . | . . . . Average Corruption . | . . . . Corruption Purged . | . . . . Corruption Blocked . | . . . . Overload Shots . | . . . . Overflow Damage 139 | . . 42 97 Projectiles 11 | . . 11 . Explosions 11 | . . 11 . Melee 117 | . . 20 97 Knockbacks 4 | . . 1 3 Impact 4 | . . 1 3 Kinetic . | . . . . Secondary . | . . . . Self-Inflicted Damage 22 | . . 22 . Shots 1 | . . 1 . Rammed . | . . . . Targets Rammed . | . . . . Kicked . | . . . . Crushed . | . . . . Highest Temperature 32 | . . 32 . Average Temperature 16 | . . 16 . Received Heat Transfer 249 | . 18 66 165 Siege Activations . | . . . . Martial Activations . | . . . . Shielding Activations . | . . . . Robots Disrupted . | . . . . Combat Hostiles . | . . . . Robots Corrupted 2 | . . . 2 Combat Hostiles 2 | . . . 2 Parts Fried 2 | . . . 2 Impact Corruptions 3 | . . 1 2 Robots Melted . | . . . . Combat Hostiles . | . . . . Parts Melted . | . . . . Heat Transferred . | . . . . Parts Sabotaged . | . . . . Parts Stolen . | . . . . Parts Stripped . | . . . . Power Chain Reactions . | . . . . Alert | -11 -10 -10 -10 ------- Run | Yrd Mat Min Sub Maximum Alert Level . | . . . . Low Security (%) 100 | 100 100 100 . Level 1 . | . . . . Level 2 . | . . . . Level 3 . | . . . . Level 4 . | . . . . Level 5 . | . . . . High Security . | . . . . Max Security . | . . . . Peak Influence 90 | . 30 90 . Initial 1 | . . 1 . Average 9 | . 2 20 . Influence Increases 214 | . 43 151 20 Destroy 0b10 Robot/C 140 | . 20 100 20 Destroy 0b10 Robot/NC 5 | . . 5 . Destroy Leader 30 | . 10 20 . Successful Hack 13 | . 13 . . Destroy Structure 11 | . . 11 . Lose Combat Pursuer 15 | . . 15 . Influence Decreases 214 | . 39 85 90 Entered New Map 40 | . . 3 37 Time Decay 174 | . 39 82 53 Squads Dispatched 2 | . 2 . . Investigation 1 | . 1 . . Extermination . | . . . . Reinforcement 1 | . 1 . . Assault . | . . . . Garrison . | . . . . Intercept . | . . . . Searches Triggered . | . . . . Construction Impeded . | . . . . Haulers Reinforced . | . . . . Active Scanning Responses . | . . . . Cargo Convoy Interrupts . | . . . . Stealth | -11 -10 -10 -10 --------- Run | Yrd Mat Min Sub Distress Signals . | . . . . Communications Jammed . | . . . . Distress Signals . | . . . . Times Spotted 45 | . 4 21 20 Peak Tracking Total 22 | . 2 22 10 Tactical Retreats 5 | . . 1 4 Traps | -11 -10 -10 -10 ------- Run | Yrd Mat Min Sub Traps Triggered 1 | . 1 . . Indirectly . | . . . . Trap Hack Attempts . | . . . . Triggered . | . . . . Disarmed 6 | . 6 . . Reprogrammed . | . . . . Reused . | . . . . Traps Extracted . | . . . . Installed . | . . . . Triggered . | . . . . Machines | -11 -10 -10 -10 ---------- Run | Yrd Mat Min Sub Machines Disabled . | . . . . Max in Single Turn . | . . . . Machines Repaired . | . . . . Machines Dismantled . | . . . . Machines Sabotaged . | . . . . Overloaded Fab Kills . | . . . . Hacking | -11 -10 -10 -10 --------- Run | Yrd Mat Min Sub Machines Accessed 3 | . 3 . . Terminals 3 | . 3 . . Fabricators . | . . . . Repair Stations . | . . . . Recycling Units . | . . . . Scanalyzers . | . . . . Garrison Access . | . . . . Total Hacks 10 | . 10 . . Successful 6 | . 6 . . Failed 4 | . 4 . . Catastrophic 2 | . 2 . . Database Lockouts . | . . . . Manual 5 | . 5 . . Terminals 10 | . 10 . . Fabricators . | . . . . Repair Stations . | . . . . Recycling Units . | . . . . Scanalyzers . | . . . . Garrison Access . | . . . . Terminal Hacks 6 | . 6 . . Record 1 | . 1 . . Robot Analysis 2 | . 2 . . Branch Access Points 1 | . 1 . . Locate Traps 1 | . 1 . . Disarm Traps 1 | . 1 . . Fabricator Hacks . | . . . . Repair Station Hacks . | . . . . Recycling Unit Hacks . | . . . . Scanalyzer . | . . . . Garrison Access Hacks . | . . . . Unauthorized Hacks . | . . . . Terminals . | . . . . Fabricators . | . . . . Repair Stations . | . . . . Recycling Units . | . . . . Scanalyzers . | . . . . Garrison Access . | . . . . Data Cores Recovered . | . . . . Used . | . . . . Hacking Detections 1 | . 1 . . Full Trace Events . | . . . . Feedback Events . | . . . . Feedback Blocked . | . . . . Robot Schematics Acquired . | . . . . Robots Built . | . . . . Authchips . | . . . . Time . | . . . . Total Robot Build Rating . | . . . . Part Schematics Acquired . | . . . . Parts Built . | . . . . Authchips . | . . . . Time . | . . . . Total Part Build Rating . | . . . . Part Studies Acquired . | . . . . Parts Repaired . | . . . . Time . | . . . . Parts Recycled . | . . . . Recycled Matter . | . . . . Retrieved Matter . | . . . . Retrieved Components . | . . . . Parts Scanalyzed . | . . . . Part Schematics Acquired . | . . . . Parts Damaged . | . . . . Bothacking | -11 -10 -10 -10 ------------ Run | Yrd Mat Min Sub Used RIF Installer . | . . . . Robots Hacked . | . . . . Non-combat . | . . . . Combat . | . . . . Robot Hacks Applied . | . . . . Relay Couplers Released . | . . . . Fabnet Peak Effective % . | . . . . Robots Rewired . | . . . . Allies Hacked . | . . . . Hacks Repelled . | . . . . Allies | -11 -10 -10 -10 -------- Run | Yrd Mat Min Sub Total Allies . | . . . . Largest Group . | . . . . Highest-Rated Group . | . . . . Highest-Rated Ally . | . . . . Total Orders . | . . . . Ally Attacks . | . . . . Total Damage . | . . . . Kills . | . . . . Allies Corrupted . | . . . . Allies Melted . | . . . . Intel | -11 -10 -10 -10 ------- Run | Yrd Mat Min Sub Active Infowar (turns) . | . . . . Robot Analysis Total 2 | . 2 . . Derelict Logs Recovered . | . . . . Drone Launches . | . . . . Drone Recoveries . | . . . . Exploration | -11 -10 -10 -10 ------------- Run | Yrd Mat Min Sub Turns Passed 2175 | 60 468 323 1324 Spaces Moved 1484 | 41 328 228 887 Core 80 | 4 . . 76 Treads . | . . . . Legs 1404 | 37 328 228 811 Wheels . | . . . . Hover . | . . . . Flight . | . . . . Fastest Speed 50 | 50 120 120 120 Average Speed 125 | 113 120 120 129 Slowest Speed 250 | 120 120 120 250 Overloaded Moves . | . . . . Propulsion Burnouts . | . . . . Robots Hopped . | . . . . Potential Cave-ins . | . . . . Cave-ins Triggered . | . . . . Exploration Rate (%) 38 | 4 48 61 41 Regions Visited 3 Branch Regions 2 Pre-discovered Areas . | . . . . Known Exits Taken 2 | . 1 1 . Unknown Exits Taken 1 | 1 . . . Scrap Searched 1 | . . 1 . Spaces Dug 12 | . . 11 1 Terrain Destroyed 25 | . . 11 14 Melee 2 | . . 1 1 Projectile . | . . . . AOE 23 | . . 10 13 Terrain Rammed . | . . . . Walls Destroyed . | . . . . Machines Disabled . | . . . . Actions | -11 -10 -10 -10 --------- Run | Yrd Mat Min Sub Total 1754 | 54 399 255 1046 Wait 156 | . 54 8 94 Move 1481 | 40 327 227 887 Hop . | . . . . Pick Up 37 | 8 10 2 17 Fast Attach . | . . . . Attach 19 | 6 2 1 10 Detach . | . . . . Swap 8 | . 1 2 5 Drop 20 | . 3 3 14 Fire 5 | . . 3 2 Melee 28 | . 2 9 17 Ram . | . . . . Kick . | . . . . Crush . | . . . . Escape Stasis . | . . . . Rewire . | . . . . Trap . | . . . . Miscellaneous . | . . . . Route ------- -11/Scrapyard -10/Materials (discovered 3 exits: [*Mat] / *Min x2) -10/Mines (discovered 2 exits: [*Mat] / *Sub) -10/Subcaves History --------- Turn | Location | Event 2 | -11/Scrapyard | Discovered new exit (range 16) 61 | -11/Scrapyard | Entered Materials 314 | -10/Materials | Build established: Mutant 359 | -10/Materials | Identified exit to Mines 414 | -10/Materials | Discovered new exit (range 16) 529 | -10/Materials | Entered Mines 530 | -10/Mines | Assembled infested the area 531 | -10/Mines | Met a Derelict bent on vengeance 535 | -10/Mines | Assisted by a Guerilla fighting off Assembled 834 | -10/Mines | Discovered new exit (range 16) 839 | -10/Mines | Discovered new exit (range 9) 851 | -10/Mines | Identified exit to Subcaves 852 | -10/Mines | Entered Subcaves 853 | -10/Subcaves | Approached by a straggling Scientist 942 | -10/Subcaves | Ambushed by swarm of Subdwellers 944 | -10/Subcaves | Ambushed by Subdwellers from Twisted Machinery 944 | -10/Subcaves | Ambushed by Subdwellers from Twisted Machinery 944 | -10/Subcaves | Ambushed by Subdwellers from Twisted Machinery 949 | -10/Subcaves | Core integrity fell below 50% 973 | -10/Subcaves | Core integrity fell below 20% 1004 | -10/Subcaves | Lost 4 parts (1p2n1w) 1025 | -10/Subcaves | Lost 4 allies 1301 | -10/Subcaves | Shifting Twisted Machinery released Mak. Light Armor Plating 1365 | -10/Subcaves | Shifting Twisted Machinery released Battle Cannon 1422 | -10/Subcaves | Shifting Twisted Machinery released Mak. Axe 1506 | -10/Subcaves | Shifting Twisted Machinery released Scrap Shield 2176 | -10/Subcaves | Destroyed by JP-K07(R) with Subdweller Beam Cannon Last Messages --------------- 01985_ Subatomizers dissect the Sub. Monowheel. 01988_ ZO-KSK(R): "SUBMAD!" 01996_ Subatomizers dissect the Sub. Monowheel. 02006_ ZO-KSK(R) affixes Scrap Shield Fragment to Scrap Shield. 02008_ Subatomizers dissect the Sub. Monowheel. 02015_ Maul follow-up attack on ZO-KSK(R). 02016_ ZO-KSK(R) affixes Scrap Shield Fragment to Scrap Shield. 02021_ Subatomizers dissect the Sub. Monowheel, destroying it. 02021_ Maul follow-up attack on ZO-KSK(R). 02021_ ZO-KSK(R) suffers critical hit (Smash). 02021_ Destroyed Sub. Optics. 02021_ ZO-KSK(R) system corrupted by crushing effect. 02021_ ZO-KSK(R) knocked back. 02022_ ZO-KSK(R) system terminally corrupted. 02022_ Sub. Power Source fried. 02022_ Sub. Monowheel fried. Map ----- +----------------------------------------------------+ | ?????????????????????????????????????????????????? | | ?????????????????????????????????????????????????? | | ?????????????????????????????????????????????????? | | ?????????????????????????????????????????????????? | | ?????????????????????????????????????????????????? | | ?????????????????????????????????????????????????? | | ?????????????????????????????????????????????????? | | ?????????????????????????????????????????????????? | | ?????????????????????????????????????????????????? | | ?????????????????????????????????????????????????? | | ?????????????????????????????????????????????????? | | ?????????????????????????????????????????????????? | | ?????????????????????????????????????????????????? | | ?? ????????????????????????????????????????????? | | ## ??????####??????????????????????????????????? | | ?????? ??????????????????????????????????? | | #??????? ?????????????????????? ???????????? | | #???????? # ##???????????????????? ???????????? | | #?????????# #?????????????????? ??????????? | | #????????? #????????????????? ???????????? | | #?????????# ##??????????????? ?????????????? | | #????????## ###??????????? ???????????????? | | ##???????# #?#######?? #???????????????? | | #???????# ### # # ## #????????????????? | | #??????## #?# R #?????????????????? | | ##??###### #??# ## @# #?????????????????? | | ##?## #### ######?? #?????????????????? | | ### # # #???????? ???????????????? | | ## #?????????? #?????????????? | | ###### ## # ###????????????#?????????????? | | ## ##????###########????????????????????????????? | | #####????????????????????????????????????????????? | | ?????????????????????????????????????????????????? | | ?????????????????????????????????????????????????? | | ?????????????????????????????????????????????????? | | ?????????????????????????????????????????????????? | | ?????????????????????????????????????????????????? | | ?????????????????????????????????????????????????? | | ?????????????????????????????????????????????????? | | ?????????????????????????????????????????????????? | | ?????????????????????????????????????????????????? | | ?????????????????????????????????????????????????? | | ?????????????????????????????????????????????????? | | ?????????????????????????????????????????????????? | | ?????????????????????????????????????????????????? | | ?????????????????????????????????????????????????? | | | | | | | | | +----------------------------------------------------+ Best States ------------- Heat Dissipation 25 Energy Generation 18 Energy Capacity 250 Matter Stores 300 Matter Capacity 300 Sight Range 16 Terrain Scan Density 10 Armor Coverage 100 Propulsion Shielding 33 Evasion (%) 55 Item Schematics ----------------- None Robot Schematics ------------------ None Fabricated ------------ Nothing Repaired ---------- Nothing Studied --------- None Alien Tech Used ----------------- None Achievements -------------- Hunted I Survived The Infestation Slippery One Challenges ------------ None Game ------ Seed ProcessingAngularCompanion Manual? 0 Play Time 00:24:34 Cumulative 6.5 hours Start 2026.02.18 @ 12:01:42 End 2026.02.18 @ 12:27:14 Sessions 1 Manual Loads 0 Difficulty Rogue Special Mode None Game No. 7 Rogue 7 Adventurer 0 Explorer 0 Win Type - Total 0 Types 0/0/0/0/0/0/0/0/0/0 Lore% 7 Gallery% 15 Achievement% 12 Wizard Run 0 Options --------- Layout 1 ASCII 0 Keyboard 0 Movement Mouse Keybinds 0 Fullscreen 1 Font 24/Swanston Map View 50x35 Zoom Use 0% Tactical HUD 1 Map Filters NONE Filters NONE Steam 1 RUN: 1adc9bad-cea8-4f1f-bbba-a8eadc8f1b47